bitfinex/quotes_SOLUSD_20240604
["timestamp","ask_amount","ask_price","bid_price","bid_amount"]
[1717474946041,0.2497874,166.93,166.92,162.9498]
[1717474946237,0.2497874,166.93,166.92,158.5166]
[1717474981469,0.2497874,166.93,166.92,196.1488]
[1717474981768,0.2,166.94,166.93,49.0151]
[1717474981942,0.2,166.94,166.93,72.70341173]
[1717474986069,0.2,166.94,166.93,65.79341173]
[1717474988285,0.2,166.94,166.93,64.8704]
[1717474991975,0.2,166.94,166.93,84.8704]
[1717474992378,0.2,166.94,166.93,85.79327228]
[1717474995579,0.2,166.94,166.93,93.93562632]
[1717474995966,0.2,166.94,166.93,93.01275404]
[1717474996587,2.2152,167.03,166.93,93.01275404]
[1717474996588,6.3625,167.03,166.99,38.1756]
[1717474996818,6.3625,167.02,167.0,0.34]
[1717474996960,6.91,167.01,167.0,0.34]
[1717474999686,6.91,167.01,167.0,2.5555]
[1717475001486,0.2,167.04,167.02,2.2152]
[1717475001774,6.91,167.03,167.02,2.2152]
[1717475001966,6.91,167.03,167.02,2.3852]
[1717475002876,6.91,167.03,167.02,2.2152]
[1717475003084,6.91,167.03,167.02,2.3852]
[1717475004882,6.91,167.03,167.02,0.17]
[1717475005763,6.91,167.03,167.01,2.2154]
[1717475005964,6.91,167.03,167.02,2.2153]
[1717475006887,6.91,167.03,167.02,2.3853]
[1717475010084,0.2,167.04,167.02,2.3853]
[1717475010266,6.91,167.03,167.02,2.3853]
[1717475015781,6.91,167.03,167.02,0.17]
[1717475019675,6.91,167.03,167.0,0.17]
[1717475019891,7.11,167.04,167.01,2.2153]
[1717475020193,6.91,167.02,167.01,2.2153]
[1717475020394,6.91,167.02,167.0,2.2155]
[1717475020690,0.2,167.04,167.0,2.2155]
[1717475020891,6.91,167.01,167.0,2.2155]
[1717475021069,6.91,167.01,167.0,2.5555]
[1717475021684,27.84,167.04,167.01,2.2154]
[1717475021874,6.91,167.02,167.01,2.2154]
[1717475023087,0.2,167.04,167.01,2.2154]
[1717475023296,6.91,167.02,167.01,2.2154]
[1717475023677,0.2,167.04,167.01,2.2154]
[1717475023880,6.91,167.02,167.01,2.2154]
[1717475024683,6.91,167.02,167.01,2.3854]
[1717475024885,6.91,167.02,167.01,2.5554]
[1717475029177,6.91,167.02,167.01,0.34]
[1717475029787,0.2,167.04,167.01,0.34]
[1717475030097,0.2,167.04,167.02,0.17]
[1717475030283,6.91,167.03,167.02,0.17]
[1717475030785,6.91,167.03,167.01,0.34]
[1717475031303,6.91,167.03,167.01,2.5554]
[1717475033693,6.91,167.03,167.01,0.34]
[1717475039607,0.2,167.04,167.01,0.34]
[1717475039799,6.91,167.02,167.01,0.34]
[1717475044915,6.91,167.02,167.01,2.5554]
[1717475045387,6.91,167.02,167.01,0.34]
[1717475046003,0.2,167.04,167.01,0.34]
[1717475046209,6.91,167.02,167.01,0.34]
[1717475046386,6.91,167.02,167.01,2.5554]
[1717475046779,6.91,167.02,167.01,0.34]
[1717475048984,6.91,167.02,167.01,9.24559398]
[1717475050412,6.91,167.02,167.01,10.44193237]
[1717475052291,6.91,167.02,167.01,1.53633839]
[1717475056716,6.91,167.02,167.01,0.34]
[1717475059721,0.2,167.04,167.01,0.34]
[1717475059900,0.2,167.04,167.02,2.3852]
[1717475060211,0.2,167.04,167.03,0.17]
[1717475060588,7.11,167.04,167.02,0.34]
[1717475060787,6.91,167.03,167.02,0.34]
[1717475064096,0.2,167.04,167.02,0.34]
[1717475064519,0.2,167.04,167.01,9.24607288]
[1717475064923,6.91,167.02,167.01,9.24607288]
[1717475065598,0.2,167.04,167.01,9.24607288]
[1717475065996,6.91,167.02,167.01,9.24607288]
[1717475066700,6.91,167.02,167.01,0.34]
[1717475069420,6.91,167.02,167.01,9.24607288]
[1717475069819,6.91,167.02,167.01,0.34]
[1717475071020,6.91,167.02,167.01,9.24607288]
[1717475072929,0.2,167.04,167.01,9.24607288]
[1717475073304,6.91,167.02,167.01,9.24607288]
[1717475075151,0.2,167.04,167.01,9.24607288]
[1717475075329,6.91,167.02,167.01,9.24607288]
[1717475077548,6.91,167.02,167.01,0.34]
[1717475082445,0.2,167.04,167.01,6.4372]
[1717475082654,6.91,167.02,167.01,8.6526]
[1717475082831,6.91,167.02,167.01,17.55867288]
[1717475083638,0.2,167.04,167.01,17.55867288]
[1717475083872,6.91,167.02,167.01,17.55867288]
[1717475084028,6.91,167.02,167.01,11.46147288]
[1717475084229,6.91,167.02,167.01,2.5554]
[1717475084538,6.91,167.02,167.01,0.34]
[1717475088769,6.91,167.02,167.01,9.24607288]
[1717475090196,6.91,167.02,167.0,8.90607288]
[1717475090483,6.91,167.01,167.0,8.90607288]
[1717475090866,6.91,167.01,166.99,11.12167288]
[1717475091181,9.325,167.04,166.99,11.12167288]
[1717475091182,6.91,167.0,166.99,11.12167288]
[1717475091482,6.91,167.0,166.99,11.29167288]
[1717475091654,6.91,167.0,166.99,11.46167288]
[1717475093754,6.91,167.0,166.99,8.90607288]
[1717475093953,6.91,167.0,166.98,8.90607288]
[1717475094281,6.91,166.99,166.97,2.2159]
[1717475094492,6.91,166.98,166.97,2.2159]
[1717475096195,6.91,166.98,166.96,2.216]
[1717475096372,6.91,166.97,166.96,2.216]
[1717475096704,6.91,166.97,166.96,2.556]
[1717475098282,6.6597,167.01,166.97,2.2158]
[1717475098477,6.91,166.98,166.97,2.2158]
[1717475098694,6.91,166.98,166.97,2.5558]
[1717475100669,6.91,166.98,166.97,0.34]
[1717475101182,6.91,166.98,166.97,2.3859]
[1717475101385,2.2153,167.02,166.97,2.5559]
[1717475101566,6.91,166.98,166.97,2.3859]
[1717475101772,6.91,166.98,166.97,2.5559]
[1717475102075,0.2,167.04,166.98,2.2158]
[1717475102268,6.91,167.0,166.99,0.17]
[1717475102875,2.2153,167.02,166.98,0.34]
[1717475103076,6.91,166.99,166.98,0.34]
[1717475103769,2.2152,167.03,166.98,0.34]
[1717475103968,6.91,166.99,166.98,0.34]
[1717475104684,2.2152,167.03,166.98,0.34]
[1717475104881,6.91,166.99,166.98,0.34]
[1717475107700,30.055,167.04,166.98,2.5558]
[1717475107906,6.91,166.99,166.98,2.5558]
[1717475108317,6.91,166.99,166.98,0.34]
[1717475110503,6.91,166.99,166.97,0.34]
[1717475111309,6.91,166.98,166.97,0.34]
[1717475112823,2.74807823,167.03,166.97,2.5559]
[1717475113031,6.91,166.98,166.97,2.5559]
[1717475113905,2.2152,167.03,166.97,122.5559]
[1717475114206,6.91,166.99,166.97,122.5559]
[1717475115738,2.2152,167.03,166.98,2.2158]
[1717475115907,6.91,166.99,166.98,2.2158]
[1717475116109,6.91,166.99,166.98,2.5558]
[1717475116895,6.91,166.99,166.98,0.34]
[1717475117093,2.2152,167.03,166.98,0.34]
[1717475117299,2.2152,167.03,166.99,0.34]
[1717475117503,6.91,167.0,166.99,0.34]
[1717475117815,6.91,167.0,166.99,0.17]
[1717475117995,6.91,167.0,166.98,0.34]
[1717475118191,2.2155,167.01,166.94,2.2162]
[1717475118508,6.91,166.98,166.96,122.216]
[1717475119708,6.91,166.98,166.97,0.34]
[1717475121202,6.91,166.98,166.97,0.17]
[1717475122006,6.91,166.98,166.94,2.2163]
[1717475122202,6.91,166.96,166.94,2.2163]
[1717475122605,6.91,166.96,166.95,2.2162]
[1717475122916,2.2154,167.01,166.95,2.2162]
[1717475123225,6.91,166.97,166.96,0.17]
[1717475123387,6.91,166.97,166.96,0.34]
[1717475123587,6.91,166.97,166.96,2.556]
[1717475123810,6.91,166.97,166.96,0.34]
[1717475124291,6.91,166.98,166.96,120.34]
[1717475124495,0.2,167.04,166.96,156.3]
[1717475124689,6.91,166.98,166.97,2.2159]
[1717475124989,6.91,166.99,166.97,2.5559]
[1717475125194,6.91,166.99,166.98,0.34]
[1717475129327,2.2152,167.03,166.98,2.5558]
[1717475129616,6.91,166.99,166.98,2.5558]
[1717475130616,6.91,166.99,166.98,0.34]
[1717475130823,6.91,166.99,166.98,0.17]
[1717475133697,6.91,166.99,166.96,2.216]
[1717475133894,6.91,166.99,166.97,0.17]
[1717475134094,6.91,166.98,166.97,0.17]
[1717475134901,6.91,166.98,166.95,11.30037814]
[1717475135105,6.91,166.96,166.95,11.30037814]
[1717475135317,6.91,166.96,166.95,2.5561]
[1717475135923,6.91,166.96,166.95,11.47037814]
[1717475136126,2.2153,167.02,166.95,9.25427814]
[1717475136328,6.91,166.97,166.96,2.556]
[1717475136918,6.91,166.97,166.96,0.17]
[1717475137319,6.91,166.97,166.95,2.2161]
[1717475137532,6.91,166.96,166.95,2.2161]
[1717475137829,6.91,166.96,166.95,2.5561]
[1717475139030,6.91,166.96,166.95,4.35161125]
[1717475139414,6.91,166.96,166.95,2.5561]
[1717475142626,6.91,166.96,166.94,8.91819532]
[1717475142944,6.91,166.95,166.94,8.91819532]
[1717475143314,6.91,166.95,166.93,0.17]
[1717475143526,6.91,166.95,166.92,11.13479532]
[1717475143527,6.91,166.94,166.92,8.91819532]
[1717475143709,6.91,166.93,166.92,8.91819532]
[1717475144633,6.91,166.93,166.91,8.91819532]
[1717475145016,6.91,166.92,166.91,8.91819532]
[1717475147348,6.91,166.92,166.9,8.92207419]
[1717475147509,6.91,166.91,166.9,8.92207419]
[1717475147713,6.91,166.91,166.89,8.92207419]
[1717475147966,6.91,166.9,166.89,8.92207419]
[1717475148415,13.2655,166.9,166.85,8.92207419]
[1717475148623,6.91,166.86,166.85,8.92207419]
[1717475148928,6.91,166.86,166.84,8.92207419]
[1717475149126,2.2173,166.87,166.82,8.92207419]
[1717475149327,2.2173,166.87,166.8,122.2182]
[1717475149744,27.64,166.88,166.79,2.2182]
[1717475149938,6.91,166.81,166.77,121.03943321]
[1717475150257,6.3789,166.9,166.81,2.218]
[1717475150428,6.91,166.85,166.81,2.218]
[1717475150847,6.91,166.84,166.8,2.2181]
[1717475151033,6.91,166.83,166.79,122.2183]
[1717475151232,6.91,166.83,166.8,0.17]
[1717475152249,2.2173,166.87,166.8,2.3881]
[1717475152755,2.2173,166.87,166.81,0.17]
[1717475154355,6.91,166.85,166.81,0.17]
[1717475154546,6.91,166.84,166.81,0.17]
[1717475155149,6.91,166.83,166.81,0.17]
[1717475155354,6.91,166.83,166.8,0.34]
[1717475155945,2.2175,166.85,166.8,0.34]
[1717475156158,6.91,166.81,166.8,0.34]
[1717475156458,28.17287823,166.88,166.8,0.34]
[1717475156661,6.91,166.81,166.8,0.34]
[1717475157048,6.91,166.82,166.8,0.17]
[1717475158440,6.91,166.82,166.78,2.2184]
[1717475158765,6.91,166.81,166.78,2.2184]
[1717475158967,6.91,166.81,166.77,3.42793321]
[1717475159167,2.2175,166.85,166.78,2.3884]
[1717475159352,6.91,166.81,166.78,2.3884]
[1717475159754,2.2175,166.85,166.79,0.17]
[1717475159948,6.91,166.81,166.79,0.17]
[1717475160148,6.91,166.81,166.79,2.3883]
[1717475160341,6.91,166.81,166.79,0.17]
[1717475160542,6.91,166.81,166.78,2.3884]
[1717475160767,6.91,166.81,166.78,2.2184]
[1717475161247,15.7289,166.89,166.79,0.34]
[1717475161440,11.0841,166.91,166.81,2.218]
[1717475161641,6.91,166.85,166.82,0.17]
[1717475162248,2.2172,166.88,166.82,0.17]
[1717475162444,2.217,166.89,166.82,163.22]
[1717475162763,2.2168,166.91,166.85,2.2175]
[1717475163063,17.97,167.0,166.86,163.05]
[1717475163064,21.4385,166.98,166.86,163.05]
[1717475163245,6.91,166.93,166.87,7.08]
[1717475163442,6.91,166.93,166.88,2.3871]
[1717475163660,6.91,166.92,166.89,0.17]
[1717475163854,2.2163,166.95,166.89,0.17]
[1717475164056,2.2161,166.96,166.89,0.17]
[1717475164241,6.91,166.93,166.89,0.17]
[1717475164444,21.4385,166.98,166.89,0.34]
[1717475164445,6.045,166.98,166.89,0.34]
[1717475164649,10.4758,167.02,166.92,2.2165]
[1717475164956,6.91,166.97,166.93,0.34]
[1717475165278,2.2156,167.0,166.93,2.5564]
[1717475165777,6.91,166.98,166.93,2.5564]
[1717475166278,2.2154,167.01,166.94,2.2163]
[1717475166576,6.045,167.02,166.95,2.5561]
[1717475166577,6.91,166.98,166.95,2.5561]
[1717475166775,6.91,166.98,166.95,2.2161]
[1717475166968,6.91,166.98,166.93,8.5897]
[1717475167370,6.91,166.97,166.93,2.5563]
[1717475167566,6.91,166.96,166.93,2.5563]
[1717475167978,6.91,166.97,166.93,2.5563]
[1717475168154,6.91,166.97,166.93,8.5897]
[1717475170279,6.91,166.97,166.93,2.5563]
[1717475170781,6.91,166.96,166.93,2.5563]
[1717475171679,6.91,166.95,166.93,0.34]
[1717475171979,6.91,166.95,166.91,35.97]
[1717475171980,6.91,166.94,166.92,0.34]
[1717475172180,2.2159,166.97,166.92,0.34]
[1717475172373,6.91,166.93,166.92,0.17]
[1717475172565,6.91,166.93,166.91,0.17]
[1717475173682,6.91,166.93,166.91,2.5567]
[1717475173895,2.2158,166.98,166.91,8.9199]
[1717475174184,6.91,166.94,166.91,8.9199]
[1717475174765,6.045,167.02,166.91,6.7032]
[1717475175084,6.91,166.96,166.93,2.2164]
[1717475175389,6.91,166.95,166.94,0.34]
[1717475176366,6.91,166.95,166.94,0.17]
[1717475177098,2.2154,167.01,166.94,2.3863]
[1717475177281,2.2154,167.01,166.95,2.2162]
[1717475177800,6.91,166.97,166.96,0.17]
[1717475179075,6.91,166.97,166.95,0.34]
[1717475179266,6.91,166.96,166.95,0.17]
[1717475179795,6.91,166.96,166.94,0.34]
[1717475179972,2.2157,166.99,166.92,2.2165]
[1717475179973,6.91,166.95,166.92,2.2165]
[1717475180280,6.91,166.94,166.92,2.2165]
[1717475180482,6.91,166.95,166.92,2.2165]
[1717475181101,6.91,166.95,166.93,2.2164]
[1717475181394,6.91,166.95,166.94,0.17]
[1717475181698,6.91,166.95,166.94,2.3863]
[1717475181904,6.91,166.96,166.94,2.5563]
[1717475182074,6.91,166.96,166.95,0.17]
[1717475184385,2.4151,167.04,166.95,0.17]
[1717475184591,6.91,167.0,166.97,2.2158]
[1717475184802,6.91,166.99,166.98,0.34]
[1717475185177,6.91,166.99,166.98,0.20483032]
[1717475185384,6.91,166.99,166.97,0.34]
[1717475185595,6.91,166.98,166.97,0.34]
[1717475186580,6.91,166.98,166.96,0.17]
[1717475186781,6.91,166.97,166.96,0.17]
[1717475187405,6.91,166.97,166.96,2.556]
[1717475188301,6.91,166.98,166.96,2.556]
[1717475190081,2.2152,167.03,166.97,2.2159]
[1717475190282,6.91,166.98,166.97,2.2159]
[1717475190599,6.91,166.98,166.97,2.5559]
[1717475197210,6.91,166.98,166.97,0.34]
[1717475198607,6.91,166.98,166.97,2.5559]
[1717475200699,6.91,166.98,166.97,0.34]
[1717475201897,6.91,166.98,166.97,2.5559]
[1717475204042,27.84,167.04,166.98,2.2157]
[1717475204043,2.415,167.04,166.98,2.2157]
[1717475204323,6.91,167.0,166.99,2.5556]
[1717475204535,6.91,167.0,166.99,0.34]
[1717475205913,0.2,167.04,166.99,2.5557]
[1717475206124,6.91,167.0,166.99,2.5557]
[1717475206829,6.91,167.0,166.99,0.34]
[1717475211212,6.91,167.0,166.99,2.5557]
[1717475211639,6.91,167.0,166.99,0.34]
[1717475212438,2.2151,167.03,166.97,2.2159]
[1717475212439,2.2151,167.03,166.98,0.34]
[1717475212626,6.91,166.99,166.98,0.34]
[1717475213528,6.91,166.99,166.98,2.5558]
[1717475215327,27.84,167.04,166.99,2.2156]
[1717475215537,6.91,167.0,166.99,2.2156]
[1717475215713,6.91,167.0,166.99,2.5556]
[1717475215916,0.2,167.04,166.99,2.5556]
[1717475216122,6.91,167.0,166.99,2.5556]
[1717475218820,27.84,167.04,166.99,2.5556]
[1717475219014,27.84,167.04,167.0,0.34]
[1717475219217,6.91,167.01,167.0,0.34]
[1717475220745,6.91,167.01,167.0,0.17]
[1717475221037,6.91,167.01,166.99,0.34]
[1717475221243,6.91,167.0,166.99,2.5557]
[1717475222125,0.2,167.04,167.0,2.2155]
[1717475222333,6.91,167.01,166.99,2.5556]
[1717475224150,6.91,167.01,167.0,2.2155]
[1717475224320,6.91,167.01,167.0,2.5555]
[1717475224520,6.91,167.01,167.0,0.34]
[1717475224849,0.2,167.04,167.0,0.34]
[1717475225142,6.91,167.01,167.0,0.34]
[1717475234053,27.84,167.04,167.0,2.5555]
[1717475234236,0.2,167.04,167.01,0.34]
[1717475234439,6.91,167.02,167.01,0.34]
[1717475235131,6.91,167.02,167.01,0.17]
[1717475235949,6.91,167.02,167.0,0.34]
[1717475236149,6.91,167.01,167.0,0.34]
[1717475239750,6.91,167.01,167.0,2.5555]
[1717475240437,0.2,167.04,167.0,2.5555]
[1717475240637,6.91,167.02,167.0,2.5555]
[1717475240835,6.91,167.02,167.01,2.2154]
[1717475241047,6.91,167.02,167.01,2.5554]
[1717475241460,6.91,167.02,167.01,0.34]
[1717475242258,0.2,167.04,167.01,0.34]
[1717475242434,6.91,167.02,167.01,0.34]
[1717475243134,0.2,167.04,167.01,0.34]
[1717475243333,6.91,167.02,167.01,0.34]
[1717475244154,0.2,167.04,167.01,0.34]
[1717475244357,6.91,167.02,167.01,0.34]
[1717475244848,0.2,167.04,167.01,0.34]
[1717475245059,6.91,167.02,167.01,0.34]
[1717475245945,0.2,167.04,167.01,0.34]
[1717475246149,6.91,167.02,167.01,0.34]
[1717475246856,0.2,167.04,167.01,0.34]
[1717475247059,6.91,167.02,167.01,0.34]
[1717475247554,6.91,167.02,167.01,2.5554]
[1717475247937,6.91,167.02,167.01,0.34]
[1717475249361,0.2,167.04,167.01,0.17]
[1717475249547,0.2,167.04,167.0,0.34]
[1717475249742,6.91,167.02,167.0,0.34]
[1717475250246,6.91,167.01,167.0,0.34]
[1717475252160,0.2,167.04,167.0,0.34]
[1717475252368,6.91,167.02,167.01,2.2153]
[1717475252556,6.91,167.02,167.01,2.5553]
[1717475253463,6.91,167.02,167.01,0.34]
[1717475253673,6.91,167.02,167.01,0.17]
[1717475257469,6.91,167.02,167.0,0.34]
[1717475257672,6.91,167.01,167.0,0.34]
[1717475259376,6.91,167.01,167.0,0.17]
[1717475259676,6.91,167.01,166.99,0.17]
[1717475259879,6.91,167.0,166.99,0.17]
[1717475260563,6.91,167.0,166.98,2.3857]
[1717475260749,6.91,166.99,166.98,2.3857]
[1717475260950,6.91,166.99,166.98,0.17]
[1717475261145,6.91,166.99,166.97,8.92869601]
[1717475261345,6.91,166.98,166.96,8.92869601]
[1717475261567,6.91,166.97,166.96,8.92869601]
[1717475261750,6.91,166.97,166.95,3.24902422]
[1717475261950,6.91,166.96,166.95,3.24902422]
[1717475262369,6.91,166.96,166.95,1.03282422]
[1717475262750,2.2155,167.01,166.95,3.24902422]
[1717475262943,6.91,166.96,166.95,3.24902422]
[1717475263173,6.91,166.97,166.95,3.24902422]
[1717475264272,2.2153,167.02,166.96,2.556]
[1717475264471,6.91,166.98,166.96,2.556]
[1717475265651,2.2151,167.03,166.96,122.556]
[1717475265970,6.91,167.0,166.97,2.2159]
[1717475266191,30.0551,167.04,166.98,0.34]
[1717475266360,6.91,167.0,166.98,2.5558]
[1717475266693,30.0551,167.04,166.98,0.34]
[1717475266971,30.0551,167.04,166.98,2.5557]
[1717475267175,6.91,167.0,166.98,2.5557]
[1717475267557,6.91,167.0,166.98,0.34]
[1717475267758,2.4151,167.04,166.98,0.34]
[1717475267958,6.91,167.0,166.98,0.34]
[1717475270395,6.91,166.99,166.98,0.34]
[1717475270595,6.91,166.99,166.97,0.34]
[1717475270901,6.91,166.98,166.97,0.34]
[1717475271057,6.91,166.98,166.97,0.17]
[1717475271258,0.53287823,167.03,166.97,0.17]
[1717475271477,6.91,166.98,166.96,0.34]
[1717475271779,6.91,166.97,166.96,0.34]
[1717475272485,6.91,166.97,166.95,3.24892422]
[1717475273703,6.91,166.97,166.96,2.386]
[1717475273874,6.91,166.97,166.96,2.556]
[1717475274205,6.91,166.98,166.96,2.556]
[1717475279399,6.91,166.99,166.96,2.556]
[1717475281105,6.91,166.99,166.97,2.2159]
[1717475281285,6.91,166.99,166.98,0.34]
[1717475282206,6.91,166.99,166.98,0.17]
[1717475282411,6.91,166.99,166.98,0.34]
[1717475283297,6.91,166.99,166.97,0.34]
[1717475285301,6.91,166.98,166.97,0.17]
[1717475285506,6.91,166.98,166.96,0.34]
[1717475285793,2.2154,167.01,166.96,0.34]
[1717475285794,6.91,166.97,166.96,0.34]
[1717475286012,6.91,166.97,166.93,2.2164]
[1717475286196,6.91,166.95,166.93,2.2164]
[1717475287324,2.2156,167.0,166.93,2.2164]
[1717475287325,6.91,166.96,166.94,0.17]
[1717475287704,6.91,166.96,166.94,2.3863]
[1717475287938,6.91,166.96,166.94,0.17]
[1717475288105,6.91,166.96,166.94,0.34]
[1717475289229,6.91,166.96,166.94,2.5563]
[1717475289402,2.2154,167.01,166.94,2.5563]
[1717475289726,6.91,166.96,166.94,2.5563]
[1717475290029,6.91,166.97,166.94,2.5563]
[1717475290206,6.91,166.97,166.95,2.2161]
[1717475290407,6.91,166.97,166.96,0.34]
[1717475294608,6.91,166.97,166.95,0.34]
[1717475296116,2.2154,167.01,166.95,0.34]
[1717475296317,6.91,166.97,166.95,0.34]
[1717475303037,2.2154,167.01,166.95,2.5562]
[1717475303411,6.91,166.97,166.95,0.34]
[1717475306542,2.2154,167.01,166.95,2.5562]
[1717475306846,6.91,166.98,166.95,2.5562]
[1717475307028,6.91,166.98,166.95,0.34]
[1717475310425,6.91,166.97,166.95,0.34]
[1717475310636,6.91,166.96,166.93,9.9702543]
[1717475310817,6.91,166.95,166.93,9.9702543]
[1717475311014,6.91,166.95,166.92,8.92798409]
[1717475311315,6.91,166.94,166.92,8.92798409]
[1717475311942,6.91,166.93,166.92,8.92798409]
[1717475312116,30.38897823,166.96,166.91,8.92798409]
[1717475312322,30.38897823,166.96,166.89,48.15744874]
[1717475312735,30.38897823,166.96,166.9,2.2168]
[1717475312940,28.17287823,166.96,166.9,2.2168]
[1717475313117,27.64,166.96,166.9,2.2168]
[1717475314225,6.91,166.93,166.91,2.5567]
[1717475316027,6.91,166.94,166.91,2.5567]
[1717475317818,2.2158,166.98,166.91,122.5567]
[1717475318039,6.91,166.96,166.91,122.5567]
[1717475318848,19.9346,167.05,166.93,120.0]
[1717475319144,6.91,166.98,166.96,2.216]
[1717475319360,2.2153,167.02,166.96,2.216]
[1717475319522,2.2153,167.02,166.95,2.2162]
[1717475319722,2.2153,167.02,166.96,0.34]
[1717475320654,6.91,167.0,166.96,0.34]
[1717475321132,6.91,166.99,166.96,0.34]
[1717475321329,2.2156,167.0,166.96,0.34]
[1717475321548,6.91,166.97,166.96,0.34]
[1717475325253,2.2154,167.01,166.96,0.34]
[1717475325459,6.91,166.98,166.95,0.34]
[1717475327851,2.2153,167.02,166.95,2.5562]
[1717475328049,6.91,166.99,166.95,122.5562]
[1717475328366,2.2153,167.02,166.95,128.5661]
[1717475328757,6.91,166.99,166.95,128.5661]
[1717475331176,2.2153,167.02,166.95,126.3499]
[1717475331357,2.2153,167.02,166.95,128.566]
[1717475331358,6.91,166.99,166.95,128.566]
[1717475332871,6.91,166.98,166.95,128.566]
[1717475334480,2.2153,167.02,166.91,1.03328058]
[1717475334481,6.91,166.96,166.91,1.03328058]
[1717475334765,6.91,166.94,166.91,1.03328058]
[1717475335456,26.0347,167.02,166.92,162.4411]
[1717475335665,2.2158,166.98,166.92,162.4411]
[1717475335975,6.91,166.95,166.92,162.4411]
[1717475336368,2.2158,166.98,166.92,155.97]
[1717475336667,6.91,166.95,166.93,0.34]
[1717475337074,2.2158,166.98,166.93,0.34]
[1717475337246,6.91,166.95,166.93,0.34]
[1717475340163,6.91,166.94,166.93,0.34]
[1717475340366,6.91,166.95,166.93,0.34]
[1717475340562,24.4309,167.01,166.93,0.34]
[1717475340563,2.2158,166.98,166.93,0.34]
[1717475340884,6.91,166.95,166.93,0.34]
[1717475343360,2.2156,167.0,166.94,155.97]
[1717475343666,6.91,166.97,166.95,0.34]
[1717475344755,2.2157,166.99,166.96,0.34]
[1717475345080,6.91,166.97,166.94,0.34]
[1717475346782,2.2157,166.99,166.94,120.34]
[1717475346969,6.91,166.97,166.94,120.34]
[1717475347168,2.2156,167.0,166.94,120.34]
[1717475347565,6.91,166.97,166.94,120.34]
[1717475348988,6.91,166.98,166.95,35.97]
[1717475349170,2.2154,167.01,166.96,120.34]
[1717475349379,6.91,167.01,166.96,156.31]
[1717475349874,6.91,167.01,166.96,164.9376]
[1717475352373,6.91,167.0,166.96,164.9376]
[1717475354468,6.91,167.0,166.96,162.7216]
[1717475354874,2.2155,167.01,166.96,42.7216]
[1717475355076,6.91,166.98,166.96,0.34]
[1717475359402,2.2153,167.02,166.96,0.34]
[1717475359575,6.91,166.98,166.96,0.34]